bitfinex-derivatives/quotes_ETHF0:USTF0_20251117
["timestamp","ask_amount","ask_price","bid_price","bid_amount"]
[1763377370849,3.2078,3194.9,3194.0,0.3935]
[1763377371048,3.71528,3194.9,3194.3,3.2078]
[1763377371453,3.71527,3194.9,3194.3,3.2078]
[1763377371652,0.50749,3194.8,3194.3,3.2078]
[1763377371839,3.71996667,3194.9,3194.3,3.2078]
[1763377372045,0.2338,3194.2,3194.1,2.2525142]
[1763377372248,3.3481,3194.5,3194.0,0.1455]
[1763377372249,0.2338,3194.1,3194.0,0.3923]
[1763377372553,3.3481,3194.5,3194.0,2.6448142]
[1763377372754,3.3481,3194.5,3194.0,0.3923]
[1763377372949,3.2078,3194.5,3194.0,0.3923]
[1763377373151,3.4416,3194.5,3194.4,0.2468]
[1763377373955,3.94913,3194.5,3194.0,2.3980142]
[1763377374554,3.4416,3194.5,3194.0,0.1455]
[1763377376348,4.08944,3194.5,3194.0,0.1455]
[1763377376658,0.2338,3194.1,3194.0,0.3923]
[1763377377357,3.3481,3194.5,3194.0,0.3923]
[1763377377958,3.2078,3194.5,3194.0,0.3923]
[1763377379952,0.50752,3194.6,3194.0,0.3923]
[1763377380158,0.00469667,3194.9,3194.0,0.3923]
[1763377380159,0.5075,3194.8,3194.0,0.3923]
[1763377380358,0.2338,3194.3,3194.2,3.4546]
[1763377380560,0.2338,3194.3,3194.2,3.2078]
[1763377380756,0.2338,3194.3,3194.2,3.4546]
[1763377381355,0.2338,3194.3,3194.2,3.2078]
[1763377381560,0.2338,3193.9,3193.8,2.2525142]
[1763377382358,0.2338,3193.8,3193.7,3.24202923]
[1763377382562,0.2338,3193.8,3193.7,0.03422923]
[1763377384756,3.2078,3194.1,3193.7,0.28102923]
[1763377384955,3.4416,3194.1,3194.0,0.3876]
[1763377386066,3.4416,3194.1,3194.0,0.1408]
[1763377387064,0.2338,3193.8,3193.7,0.03422923]
[1763377387564,0.2338,3193.8,3193.7,0.28102923]
[1763377388664,3.2078,3194.1,3193.7,0.28102923]
[1763377388863,3.4416,3194.1,3194.0,0.1408]
[1763377389567,0.2338,3193.8,3193.7,0.28102923]
[1763377390474,0.2338,3193.8,3193.7,0.03422923]
[1763377396766,0.2338,3193.8,3193.7,0.28102923]
[1763377397464,3.44,3194.1,3194.0,0.3748]
[1763377398480,3.44,3194.1,3194.0,0.1392]
[1763377399280,3.2078,3194.5,3194.0,0.3748]
[1763377399578,0.2322,3194.1,3194.0,0.3748]
[1763377401376,0.2322,3194.1,3194.0,0.1392]
[1763377402481,0.2322,3194.1,3194.0,0.3805]
[1763377404984,0.2322,3194.1,3194.0,0.1392]
[1763377405185,0.2322,3194.1,3194.0,0.3805]
[1763377408089,0.248,3193.8,3193.7,0.03422923]
[1763377408691,0.75565,3193.8,3193.7,0.03422923]
[1763377412591,0.248,3193.8,3193.7,0.03422923]
[1763377413287,0.248,3193.8,3193.7,0.27552923]
[1763377413690,0.75565,3193.8,3193.7,0.27552923]
[1763377413890,0.75565,3193.8,3193.7,0.03422923]
[1763377415193,0.248,3193.8,3193.7,0.03422923]
[1763377415387,0.248,3193.8,3193.7,0.27552923]
[1763377416491,0.248,3193.8,3193.7,0.03422923]
[1763377416886,0.248,3193.8,3193.7,0.27552923]
[1763377417098,0.248,3193.9,3193.8,0.2413]
[1763377417689,3.2078,3194.0,3193.9,0.2413]
[1763377418097,3.4558,3194.0,3193.9,0.2413]
[1763377426400,3.96341,3194.0,3193.9,0.2413]
[1763377427000,3.4558,3194.0,3193.9,0.2413]
[1763377430000,3.96341,3194.0,3193.9,0.2413]
[1763377432902,0.248,3193.8,3193.7,0.27552923]
[1763377433100,3.2078,3194.6,3194.0,0.1404]
[1763377433407,0.2355,3194.3,3194.2,0.2264]
[1763377434106,0.2355,3194.1,3194.0,0.3668]
[1763377434903,0.2355,3193.8,3193.7,0.03422923]
[1763377435496,0.2355,3193.8,3193.7,0.26062923]
[1763377435703,0.74312,3194.0,3193.9,0.2264]
[1763377435902,0.50762,3194.0,3193.9,0.2264]
[1763377436107,3.7154,3194.1,3194.0,0.3668]
[1763377436309,3.9509,3194.1,3194.0,0.3668]
[1763377436904,3.9509,3194.1,3194.0,0.1404]
[1763377437101,3.9509,3194.1,3194.0,0.3668]
[1763377437302,3.9509,3194.1,3193.7,0.03422923]
[1763377437507,0.2355,3193.8,3193.7,0.26062923]
[1763377438207,0.2355,3194.0,3193.9,0.2264]
[1763377438408,3.7154,3194.1,3194.0,0.3668]
[1763377439506,3.9509,3194.1,3194.0,0.3668]
[1763377439802,3.4433,3194.1,3194.0,0.3668]
[1763377440106,3.2078,3194.1,3194.0,0.3668]
[1763377440515,3.4433,3194.1,3194.0,0.3668]
[1763377441311,3.2078,3194.1,3194.0,0.3668]
[1763377446018,3.2078,3194.5,3194.0,0.3668]
[1763377446212,0.2355,3194.1,3194.0,0.3668]
[1763377446512,0.2355,3194.1,3194.0,0.1404]
[1763377450720,0.2355,3193.8,3193.7,5.49454343]
[1763377450910,0.2355,3193.8,3193.7,0.03422923]
[1763377452026,0.74315,3193.8,3193.7,0.03422923]
[1763377454942,0.2355,3193.8,3193.7,0.03422923]
[1763377456940,0.2355,3193.8,3193.7,0.26062923]
[1763377457438,0.74315,3193.8,3193.7,0.26062923]
[1763377457637,0.2355,3193.8,3193.7,0.26062923]
[1763377457845,0.75623,3193.9,3193.8,0.2479]
[1763377458035,3.4564,3194.1,3194.0,0.3927]
[1763377458844,3.4564,3194.1,3194.0,0.1448]
[1763377459346,3.964,3194.1,3194.0,0.1448]
[1763377463549,0.2486,3193.8,3193.7,0.28212923]
[1763377466748,3.2078,3194.1,3193.7,0.28212923]
[1763377466952,3.4394,3194.1,3194.0,0.1379]
[1763377469456,3.947,3194.1,3194.0,0.1379]
[1763377469756,3.4394,3194.1,3194.0,0.1379]
[1763377470055,3.947,3194.1,3194.0,0.1379]
[1763377470557,0.2316,3194.1,3194.0,0.1379]
[1763377471457,0.7392,3194.1,3194.0,0.1379]
[1763377472054,0.2316,3194.1,3194.0,0.3848]
[1763377472254,3.94697,3194.3,3194.2,0.2469]
[1763377472454,3.4394,3194.3,3194.2,0.2469]
[1763377473558,3.2078,3194.3,3194.2,0.2469]
[1763377473753,0.2316,3194.6,3194.5,0.1379]
[1763377473953,0.2316,3194.4,3194.3,3.2078]
[1763377474154,0.2316,3194.4,3194.3,3.4547]
[1763377475661,0.2316,3194.6,3194.5,0.3848]
[1763377476556,0.2316,3194.6,3194.5,0.1379]
[1763377476557,0.73912,3194.6,3194.5,0.1379]
[1763377476753,0.2316,3194.6,3194.5,0.1379]
[1763377476957,0.2316,3194.6,3194.5,0.3848]
[1763377478260,0.73912,3194.6,3194.5,0.3848]
[1763377479562,0.2316,3194.6,3194.5,0.3848]
[1763377479764,0.73912,3194.6,3194.5,0.3848]
[1763377480564,0.73916,3194.4,3194.0,0.1379]
[1763377486266,0.2316,3194.4,3194.0,0.1379]
[1763377486567,0.2316,3194.4,3194.3,0.2469]
[1763377487468,0.73915,3194.4,3194.3,0.2469]
[1763377487766,0.2316,3194.4,3194.3,0.2469]
[1763377488559,3.2078,3194.8,3194.5,0.1379]
[1763377488767,0.73912,3194.6,3194.5,0.3848]
[1763377488965,0.73912,3194.6,3194.5,0.1379]
[1763377490367,3.94692,3194.6,3194.5,0.1379]
[1763377490666,3.94692,3194.6,3194.0,0.1379]
[1763377492169,3.2078,3194.6,3194.5,0.3761]
[1763377492376,0.2378,3194.6,3194.5,0.1406]
[1763377493670,0.74532,3194.6,3194.5,0.1406]
[1763377496673,0.50755,3194.5,3194.0,2.3904142]
[1763377498977,0.50753,3194.6,3194.0,2.3904142]
[1763377500275,0.50753,3194.6,3194.5,0.3761]
[1763377500469,3.71531,3194.7,3194.6,0.2355]
[1763377500672,0.2378,3194.0,3193.9,2.2525142]
[1763377500871,3.2078,3194.0,3193.9,0.2355]
[1763377501181,0.50759,3194.2,3194.0,0.1406]
[1763377501479,0.0157,3194.1,3194.0,0.3761]
[1763377501871,0.5233,3194.1,3194.0,0.3761]
[1763377504472,0.0157,3194.1,3194.0,0.3761]
[1763377504671,3.2078,3194.4,3194.3,0.2355]
[1763377505075,3.2235,3194.4,3194.3,0.2355]
[1763377505479,0.0157,3194.1,3194.0,0.1406]
[1763377506369,0.0157,3194.1,3194.0,0.3761]
[1763377508280,3.2235,3194.4,3194.3,0.2355]
[1763377508468,3.2078,3194.4,3194.3,0.2355]
[1763377508675,3.2078,3194.8,3194.5,0.1406]
[1763377508872,0.52322,3194.6,3194.5,0.3761]
[1763377509072,0.0157,3194.6,3194.5,0.3761]
[1763377509272,0.52322,3194.6,3194.5,0.3761]
[1763377510480,1.27029367,3194.6,3194.5,0.3761]
[1763377512984,1.27029367,3194.6,3194.5,0.1406]
[1763377518183,1.27029367,3194.6,3194.5,0.3761]
[1763377520081,0.76277367,3194.6,3194.5,0.3761]
[1763377520384,0.50752,3194.6,3194.5,0.3739]
[1763377524884,0.52362,3194.6,3194.5,0.3739]
[1763377526485,0.52362,3194.6,3194.5,0.1406]
[1763377526692,0.016,3194.2,3194.1,3.4458]
[1763377527487,0.016,3194.2,3194.1,3.2078]
[1763377528290,0.52358,3194.2,3194.1,3.2078]
[1763377530390,0.5236,3194.1,3194.0,0.1406]
[1763377532486,0.5236,3194.1,3194.0,0.3786]
[1763377535795,0.5076,3194.1,3194.0,0.3786]
[1763377536200,3.73133,3194.5,3194.4,0.238]
[1763377536492,4.47931052,3194.5,3194.4,0.238]
[1763377537000,0.50759,3194.3,3194.2,0.238]
[1763377537199,0.52359,3194.3,3194.2,0.238]
[1763377537705,0.50759,3194.3,3194.2,0.238]
[1763377538403,0.50755,3194.5,3194.4,0.238]
[1763377538605,0.52351,3194.7,3194.6,0.238]
[1763377539996,0.52352,3194.6,3194.5,0.1484]
[1763377546206,0.016,3194.1,3194.0,0.3786]
[1763377546400,0.016,3194.1,3194.0,0.1406]
[1763377546793,0.5236,3194.1,3194.0,0.1406]
[1763377546996,0.5236,3194.1,3194.0,0.3786]
[1763377547607,0.52359,3194.3,3194.2,0.238]
[1763377548308,0.016,3194.1,3194.0,0.1406]
[1763377548900,0.016,3194.1,3194.0,0.3786]
[1763377549209,0.5236,3194.1,3194.0,0.3786]
[1763377552510,0.5076,3194.1,3194.0,0.3786]
[1763377553802,0.50759,3194.2,3194.1,0.2298]
[1763377553998,0.52319,3194.2,3194.1,0.2298]
[1763377556210,0.5232,3194.1,3194.0,0.1406]
[1763377556711,0.5232,3194.1,3194.0,0.3704]
[1763377558111,0.5232,3194.1,3194.0,0.1406]
[1763377559314,0.5232,3194.1,3194.0,0.3704]
[1763377559612,0.0156,3194.1,3194.0,0.3704]
[1763377560411,3.71535,3194.4,3194.3,0.2298]
[1763377560710,3.2078,3194.4,3194.3,0.2298]
[1763377562012,3.71535,3194.4,3194.3,0.2298]
[1763377562409,3.2078,3194.4,3194.3,0.2298]
[1763377563614,3.2234,3194.4,3194.3,0.2298]
[1763377564207,3.73095,3194.4,3194.3,0.2298]
[1763377565914,3.2234,3194.4,3194.3,0.2298]
[1763377566215,3.71535,3194.4,3194.3,0.2298]
[1763377566418,3.73095,3194.4,3194.3,0.2298]
[1763377567319,0.52319,3194.2,3194.1,0.2298]
[1763377569622,0.0156,3194.1,3194.0,0.1406]
[1763377570114,0.0156,3194.1,3194.0,3.5782]
[1763377570321,0.52317,3194.4,3194.3,0.2298]
[1763377571120,0.50752,3194.7,3194.6,0.2298]
[1763377571520,1.25587766,3194.7,3194.6,0.2298]
[1763377572118,0.74835766,3194.7,3194.6,0.2298]
[1763377572320,0.5075,3194.8,3194.5,3.3502]
[1763377572623,0.0156,3194.6,3194.5,3.58]
[1763377573123,0.52309,3194.8,3194.7,0.2298]
[1763377573318,3.73089,3194.8,3194.5,0.1424]
[1763377573526,0.52312,3194.6,3194.5,0.3722]
[1763377574917,0.0156,3194.1,3194.0,0.1406]
[1763377576224,0.5232,3194.1,3194.0,0.1406]
[1763377576419,0.0156,3194.1,3194.0,0.3704]
[1763377577223,0.5232,3194.1,3194.0,0.1406]
[1763377578029,0.5232,3194.1,3194.0,0.3816]
[1763377578928,0.5076,3194.1,3194.0,0.3816]
[1763377579329,0.5236,3194.1,3194.0,0.3816]
[1763377580429,0.016,3194.1,3194.0,0.3816]
[1763377580729,0.5236,3194.1,3194.0,0.1406]
[1763377583941,0.5236,3194.1,3194.0,0.3816]
[1763377585855,0.5236,3194.1,3194.0,0.1406]
[1763377586044,0.50759,3194.2,3194.0,0.1406]
[1763377586240,0.50752,3194.6,3194.5,0.1352]
[1763377586447,0.50751,3194.7,3194.5,0.1352]
[1763377586647,0.50751,3194.7,3194.6,0.2417]
[1763377586855,0.52341,3194.7,3194.6,0.2417]
[1763377587354,0.50751,3194.7,3194.6,0.2417]
[1763377587548,3.71529,3194.8,3194.6,0.2417]
[1763377587753,3.71529,3194.8,3194.5,0.1352]
[1763377587754,0.5234,3194.7,3194.5,0.1352]
[1763377587953,3.71529,3194.8,3194.7,0.2417]
[1763377588156,3.2078,3194.8,3194.7,0.2417]
[1763377588856,3.71529,3194.8,3194.7,0.2417]
[1763377590751,3.73119,3194.8,3194.7,0.2417]
[1763377597464,3.73119,3194.8,3194.5,0.1352]
[1763377597772,3.71529,3194.8,3194.7,0.2417]
[1763377598446,3.73119,3194.8,3194.7,0.2417]
[1763377600757,0.0159,3194.6,3194.5,0.3769]
[1763377602262,0.52341,3194.7,3194.6,0.2417]
[1763377604265,3.73121,3194.7,3194.6,0.2417]
[1763377604758,0.0159,3194.6,3194.5,0.1352]
[1763377605156,0.0159,3194.6,3194.5,0.3769]
[1763377607064,3.71531,3194.7,3194.6,0.2417]
[1763377607465,3.73121,3194.7,3194.6,0.2417]
[1763377608764,0.52342,3194.6,3194.5,0.3769]
[1763377609477,0.52342,3194.6,3194.5,0.1352]
[1763377609663,0.52342,3194.6,3194.5,0.3769]
[1763377609964,3.7153,3194.7,3194.6,0.2417]
[1763377610170,3.2078,3194.7,3194.6,0.2417]
[1763377610469,3.7153,3194.7,3194.6,0.2417]
[1763377612767,3.2078,3194.7,3194.6,0.2417]
[1763377613168,3.7153,3194.7,3194.6,0.2417]
[1763377615369,3.2078,3194.7,3194.6,0.2417]
[1763377615568,3.7312,3194.7,3194.6,0.2417]
[1763377620266,3.2237,3194.7,3194.6,0.2417]
[1763377620462,3.2233,3194.7,3194.6,0.2417]
[1763377621375,3.7308,3194.7,3194.6,0.2417]
[1763377621675,3.2233,3194.7,3194.6,0.2417]
[1763377621972,4.8456726,3195.5,3195.4,0.2359]
[1763377622166,4.47841072,3195.5,3195.4,0.2359]
[1763377624973,3.97103072,3195.5,3195.4,0.2359]
[1763377625180,3.22334231,3195.5,3195.4,0.2359]
[1763377626174,3.73072231,3195.5,3195.4,0.2359]
[1763377626881,4.231e-05,3195.5,3195.4,3.2078]
[1763377627373,0.58398,3196.0,3195.9,0.2359]
[1763377628372,0.52267,3196.8,3196.7,0.2359]
[1763377628574,0.52488616,3196.8,3196.7,0.23826412]
[1763377629170,0.52488616,3196.8,3196.7,0.00236412]
[1763377629576,0.52038,3196.1,3196.0,0.1353]
[1763377629977,0.52041,3195.9,3195.8,3.2078]
[1763377630282,3.2078,3196.5,3195.8,3.4437]
[1763377630477,0.52038,3196.1,3196.0,0.1353]
[1763377630676,0.0131,3195.9,3195.8,3.21128533]
[1763377630878,0.0131,3195.9,3195.8,3.44718533]
[1763377631182,0.5073,3196.0,3195.9,0.2359]
[1763377631376,0.0131,3196.0,3195.9,0.2359]
[1763377631884,0.50724,3196.4,3196.0,0.1353]
[1763377632084,3.2078,3196.5,3196.4,0.2359]
[1763377632678,3.72812,3196.5,3196.0,0.1353]
[1763377633079,0.0131,3196.1,3196.0,0.1353]
[1763377633280,0.0131,3195.9,3195.8,0.00348533]
[1763377634191,0.00221616,3196.8,3196.5,0.1353]
[1763377634192,3.7281,3196.6,3196.5,0.1353]
[1763377637591,0.0126,3196.1,3196.0,0.365]
[1763377638584,0.0126,3196.1,3196.0,0.1353]
[1763377640285,0.51988,3196.1,3196.0,0.1353]
[1763377640590,0.0126,3196.1,3196.0,0.365]
[1763377641902,0.50727,3196.2,3196.1,0.2297]
[1763377642387,0.52077,3196.2,3196.1,0.2297]
[1763377642594,0.52078,3196.1,3196.0,0.1353]
[1763377642784,0.0135,3196.1,3196.0,0.1353]
[1763377643587,0.50725,3196.3,3196.0,0.3838]
[1763377643788,0.50724,3196.4,3196.3,0.2485]
[1763377644088,3.2213,3196.6,3196.5,0.3891]
[1763377644288,3.7285,3196.6,3196.5,0.3891]
[1763377647398,0.5207,3196.6,3196.5,0.3891]
[1763377648100,0.5207,3196.6,3196.5,0.1406]
[1763377648692,0.5207,3196.6,3196.5,0.3891]
[1763377654906,0.5207,3196.6,3196.5,0.1406]
[1763377655400,0.5207,3196.6,3196.5,0.3891]
[1763377655806,0.5207,3196.6,3196.5,0.1406]
[1763377656201,1.26602072,3196.6,3196.5,0.1406]
[1763377656605,1.26602072,3196.6,3196.5,0.3891]
[1763377657209,0.75882072,3196.6,3196.5,0.3891]
[1763377657408,1.25252072,3196.6,3196.5,0.3891]
[1763377657905,3.2078,3196.7,3196.6,0.2485]
[1763377658099,0.00221616,3196.8,3196.7,0.2485]
[1763377658506,3.2078,3197.6,3197.0,0.3891]
[1763377658804,1.67567793,3197.9,3197.8,0.2485]
[1763377658805,0.5227,3197.9,3197.8,0.2485]
[1763377659014,1.26852422,3197.9,3197.8,0.2485]
[1763377659207,0.5227,3197.9,3197.8,0.2485]
[1763377659411,3.2078,3198.0,3197.5,0.1406]
[1763377659412,3.2078,3198.0,3197.9,0.2485]
[1763377659606,3.21184378,3198.0,3197.9,0.2485]
[1763377660205,0.00404378,3198.0,3197.9,0.2485]
[1763377662314,0.00404378,3198.0,3197.9,3.4563]
[1763377662906,0.00469667,3198.3,3198.2,0.2485]
[1763377663814,0.00736662,3198.3,3198.2,0.2524452]
[1763377664813,3.2078,3198.8,3198.7,0.2485]
[1763377665912,3.21071683,3198.8,3198.7,0.2485]
[1763377666113,0.00291683,3198.8,3198.7,0.2485]
[1763377677727,1.683e-05,3198.8,3198.7,0.2485]
[1763377677923,3.2078,3199.7,3199.4,0.2446]
[1763377677924,0.52814,3199.5,3199.4,0.2446]
[1763377678316,0.50673,3199.6,3199.5,0.1422]
[1763377678516,3.2078,3199.7,3199.5,0.1422]
[1763377678717,3.71451,3199.7,3199.6,0.2446]
[1763377678918,3.71746711,3199.7,3199.6,0.2446]
[1763377679520,3.73886711,3199.7,3199.6,0.2446]
[1763377679819,0.52813,3199.6,3199.5,0.1422]
[1763377680214,0.52816,3199.4,3199.3,0.00468925]
[1763377680815,0.52816,3199.4,3198.5,3.3484]
[1763377680816,0.0214,3198.8,3198.5,3.3484]
[1763377681129,0.0214,3198.8,3198.7,0.2446]
[1763377681527,0.52825,3198.8,3198.7,0.2446]
[1763377682118,0.52825,3198.8,3198.5,3.3484]
[1763377682525,0.50425,3198.8,3198.7,0.2446]
[1763377682828,0.50685,3198.9,3198.5,3.593]
[1763377683516,0.50687,3198.7,3198.5,3.593]
[1763377683923,0.50688,3198.6,3198.5,3.3484]
[1763377684123,3.71468,3198.6,3198.5,0.1406]
[1763377685828,3.2078,3198.6,3198.5,0.3852]
[1763377687426,0.50687,3198.7,3198.6,0.2446]
[1763377687627,0.50686,3198.8,3198.6,0.2446]
[1763377688535,3.2078,3199.0,3198.7,0.2446]
[1763377688729,0.50685,3198.9,3198.5,0.1406]
[1763377688933,0.50685,3198.9,3198.8,0.2446]
[1763377689328,1.25062316,3198.9,3198.8,0.2446]
[1763377689927,1.25062316,3198.9,3198.5,0.1406]
[1763377690136,1.25062316,3198.8,3198.5,0.1406]
[1763377690434,0.50685,3198.8,3198.5,0.1406]
[1763377690632,0.50685,3198.8,3198.5,0.3852]
[1763377691537,0.50687,3198.7,3198.5,0.3852]
[1763377692042,0.50688,3198.6,3198.5,0.1406]
[1763377694142,0.50687,3198.7,3198.5,0.3852]
[1763377694346,0.50685,3198.8,3198.6,0.2446]
[1763377694643,1.25146227,3198.7,3198.6,0.2446]
[1763377696746,0.50688,3198.6,3198.5,0.1406]
[1763377696942,0.5069,3198.5,3198.4,0.00468925]
[1763377697138,0.5069,3198.5,3198.4,0.24898925]
[1763377697139,1.2513908,3198.5,3198.4,0.24898925]
[1763377697337,1.2513908,3198.5,3198.4,0.00468925]
[1763377698045,1.2513908,3198.5,3198.4,0.24898925]
[1763377698240,3.2078,3198.6,3198.4,0.24898925]
[1763377698443,3.2078,3198.6,3198.5,0.3879]
[1763377698649,0.50678,3199.3,3199.2,0.2443]
[1763377698846,1.25118397,3199.3,3199.2,0.2443]
[1763377699747,1.25118397,3199.3,3199.0,0.3879]
[1763377699947,1.25119397,3199.2,3199.0,0.3879]
[1763377700148,0.50679,3199.2,3199.1,0.2443]
[1763377700444,1.2511431,3199.2,3199.1,0.2443]
[1763377700648,0.7443531,3199.2,3199.1,0.2443]
[1763377700848,3.2078,3199.4,3199.3,0.2443]
[1763377701045,4.45890035,3199.4,3199.0,0.1436]
[1763377701245,0.74434035,3199.3,3199.0,0.1436]
[1763377701650,1.25111035,3199.3,3199.0,0.1436]
[1763377701851,0.50677,3199.3,3199.0,0.1436]
[1763377702350,0.5068,3199.2,3199.0,0.3879]
[1763377702850,0.5068,3199.2,3199.0,0.1436]
[1763377703446,0.5068,3199.2,3199.0,0.3828]
[1763377703643,0.5068,3199.2,3199.1,0.2392]
[1763377703839,0.5068,3199.2,3199.0,0.1436]
[1763377704238,0.5068,3199.2,3199.1,0.2392]
[1763377706340,0.5068,3199.2,3199.0,0.1436]
[1763377706843,0.50682,3199.0,3198.5,3.3514]
[1763377707043,3.2078,3199.4,3199.0,0.3847]
[1763377707044,0.50681,3199.1,3199.0,0.3847]
[1763377707449,0.50681,3199.1,3199.0,0.1455]
[1763377707952,0.50679,3199.2,3199.0,0.1455]
[1763377708851,0.50679,3199.2,3199.0,0.3847]
[1763377710761,0.50679,3199.2,3199.0,0.1455]
[1763377710952,0.50685,3198.9,3198.8,0.2392]
[1763377711356,3.2078,3199.4,3198.8,0.2392]
[1763377711556,0.50682,3199.1,3199.0,0.1455]
[1763377712053,0.5068,3199.2,3199.1,0.2392]
[1763377712360,3.2078,3199.4,3199.3,0.2392]
[1763377712655,3.95208389,3199.4,3199.3,0.2392]
[1763377713160,3.2078,3199.4,3199.3,0.2392]
[1763377716562,0.00295711,3199.7,3199.6,0.2392]
[1763377718767,0.50966711,3199.7,3199.6,0.2392]
[1763377720374,0.50966711,3199.7,3199.5,0.1455]
[1763377720565,0.50966711,3199.7,3199.5,0.3847]
[1763377720869,0.50673,3199.6,3199.5,0.1455]
[1763377721172,0.00295711,3199.7,3199.5,0.3847]
[1763377721471,0.50966711,3199.7,3199.6,0.2392]
[1763377722170,0.50966711,3199.7,3199.5,0.1455]
[1763377725776,0.50673,3199.6,3199.5,0.1455]
[1763377726476,0.50673,3199.6,3199.5,0.3847]
[1763377727180,0.50966711,3199.7,3199.6,0.2392]
[1763377727382,0.00295711,3199.7,3199.6,0.2392]
[1763377728479,0.0030817,3200.0,3199.5,0.1455]
[1763377728480,0.0030817,3200.0,3199.9,0.2392]
[1763377729578,0.00574139,3200.0,3199.9,0.2392]
[1763377735882,0.51240139,3200.0,3199.9,0.2392]
[1763377736190,0.00574139,3200.0,3199.7,0.2362]
[1763377736377,0.50668,3199.9,3199.7,0.2362]
[1763377736877,0.50668,3199.9,3199.8,0.2362]
[1763377737988,0.51240139,3200.0,3199.9,0.2362]
[1763377738185,0.00574139,3200.0,3199.9,0.2362]
[1763377740490,3.2124,3200.8,3200.5,0.1387]
[1763377740691,0.51117,3200.6,3200.5,0.3749]
[1763377740892,0.0046,3200.6,3200.5,0.3749]
[1763377741279,0.51116,3200.7,3200.6,0.2362]
[1763377741480,0.51366974,3200.7,3200.6,0.23924609]
[1763377742486,0.00250974,3200.7,3200.6,0.23924609]
[1763377742688,0.50905974,3200.7,3200.6,0.23924609]
[1763377742996,0.00468925,3201.0,3200.9,0.2362]
[1763377744188,0.00806103,3201.0,3200.9,0.2362]
[1763377744389,0.50652,3200.9,3200.6,3.21084609]
[1763377744595,0.0071,3200.7,3200.6,3.44704609]
[1763377744797,0.00806103,3201.0,3200.6,3.44704609]
[1763377744798,0.50652,3200.9,3200.6,3.44704609]
[1763377744992,0.51362,3200.9,3200.8,0.2362]
[1763377745389,0.00806103,3201.0,3200.9,0.2362]
[1763377746999,3.2078,3201.6,3201.5,0.1387]
[1763377747199,3.71421,3201.6,3201.5,0.3749]
[1763377747394,3.72941,3201.6,3201.5,0.3749]
[1763377747598,3.72941,3201.6,3201.5,0.1387]
[1763377748000,3.73216046,3201.6,3201.5,0.1387]
[1763377748698,3.73216046,3201.6,3201.5,0.3749]
[1763377748997,3.71696046,3201.6,3201.5,0.3749]
[1763377749189,3.73216046,3201.6,3201.5,0.3749]
[1763377749391,3.73216046,3201.6,3201.5,0.1387]
[1763377752200,0.0152,3201.1,3201.0,0.1387]
[1763377752503,0.52169,3201.1,3201.0,0.1387]
[1763377752808,3.72949,3201.1,3201.0,0.1387]
[1763377755399,0.50655,3200.7,3200.6,0.23924609]
[1763377757602,0.52175,3200.7,3200.6,0.23924609]
[1763377757802,3.2078,3201.1,3200.6,0.23924609]
[1763377758006,3.2227,3201.1,3201.0,0.3872]
[1763377758211,3.72919,3201.1,3201.0,0.3872]
[1763377758399,3.2078,3201.1,3201.0,0.3872]
[1763377759101,0.00275046,3201.6,3201.5,0.3872]
[1763377759810,3.2078,3201.9,3201.8,0.2417]
[1763377760909,3.2103644,3201.9,3201.8,0.2417]
[1763377761408,0.0025644,3201.9,3201.8,0.2417]
[1763377761895,0.0025644,3201.9,3201.8,3.4495]
[1763377762404,3.2078,3202.3,3202.2,0.2406]
[1763377763107,3.7141,3202.3,3202.2,0.2406]
[1763377763308,3.2078,3202.3,3202.2,0.2406]
[1763377763503,3.22950228,3202.3,3202.2,0.2406]
[1763377763712,3.21180228,3202.3,3202.2,0.2406]
[1763377764213,0.00400228,3202.3,3202.2,0.2406]
[1763377766210,0.52787,3203.1,3203.0,0.1494]
[1763377766604,0.0217,3203.1,3203.0,0.1494]
[1763377766813,0.52787,3203.1,3203.0,0.1494]
[1763377767208,0.53014572,3203.1,3203.0,0.15170957]
[1763377768505,0.53014572,3203.1,3203.0,0.00230957]
[1763377770407,0.52565,3202.6,3202.5,0.1494]
[1763377770711,0.0194,3202.3,3202.2,3.4484]
[1763377771412,0.0194,3202.3,3202.2,3.45232959]
[1763377771808,0.50627,3202.5,3202.4,0.2406]
[1763377772413,3.73347,3202.6,3202.5,0.39]
[1763377772822,3.73347,3202.6,3202.5,0.1494]
[1763377773014,0.5257,3202.3,3202.2,3.21172959]
[1763377774014,3.2272,3202.6,3202.5,0.39]
[1763377774213,3.73345,3202.6,3202.5,0.39]
[1763377774916,3.73345,3202.6,3202.5,0.1494]
[1763377779221,0.5257,3202.3,3202.2,0.00392959]
[1763377779718,0.5257,3202.3,3201.0,3.3572]
[1763377779719,0.51711,3201.6,3201.0,3.3572]
[1763377779920,0.51711,3201.6,3201.5,0.3861]
[1763377780516,3.2078,3201.7,3201.6,0.2406]
[1763377780735,3.2078,3201.7,3201.6,0.24435932]
[1763377781516,0.51103925,3202.0,3201.9,0.2406]
[1763377781718,0.00468925,3202.0,3201.9,3.4484]
[1763377781925,0.00468925,3202.0,3201.9,0.2406]
[1763377782613,0.00468925,3202.0,3201.6,0.00375932]
[1763377782614,0.50636,3201.9,3201.6,0.00375932]
[1763377782914,0.51103925,3202.0,3201.6,0.00375932]
[1763377783314,0.52173925,3202.0,3201.9,0.2406]
[1763377783711,0.00468925,3202.0,3201.9,0.2406]
[1763377783915,0.51103925,3202.0,3201.9,0.2406]
[1763377784116,0.00468925,3202.0,3201.9,0.2406]
[1763377784322,0.51103925,3202.0,3201.9,0.2406]
[1763377785224,0.00468925,3202.0,3201.9,0.2406]
[1763377785919,0.01538925,3202.0,3201.9,0.2406]
[1763377786719,0.52173925,3202.0,3201.6,0.00375932]